{"text_format":"3","workbook":"xlsx","n_sheets":2,"sheets":["Proje İzleyicisi","Kurulum"],"not_rendered":{"defined_names":6},"read":"whole","date_system":"1900"}

{"sheet":"Proje İzleyicisi","index":0,"n_rows":13,"n_cols":15,"rows_kept":13}
[null,"Proje İzleyicisi",{"$nulls":10}," "]
[null,null,"Fazla/Eksik Yüzdeler için Bayrak: ",{"v":0.25,"d":"25%"}]
[]
[null,"Proje","Kategori","Atanan","Tahmini\nBaşlangıç","Tahmini \nBitiş","Tahmini Çalışma Süresi (saat)","Tahmini Çalışma Süresi (gün)","Fiili \nBaşlangıç","FiiliBitiş","Fazla/Eksik Fiili Çalışmalar için Bayrak simgesi (saat)","Fiili Çalışma Süresi (saat)","Fazla/Eksik Fiili Çalışmalar için Bayrak simgesi (gün)","Fiili Çalışma Süresi (gün)","Notlar"]
[null,"Proje 1","Kategori 1","Çalışan 1",{"$f":"TODAY()-65","v":"2016-08-17"},{"$f":"TODAY()-5","v":"2016-10-16"},210,{"$f":"IF(COUNTA('Proje İzleyicisi'!$E5,'Proje İzleyicisi'!$F5)<>2,\"\",DAYS360('Proje İzleyicisi'!$E5,'Proje İzleyicisi'!$F5,FALSE))","v":59},{"$f":"TODAY()-65","v":"2016-08-17"},{"$f":"TODAY()","v":"2016-10-21"},{"$f":"IFERROR(IF(Projeİzleyicisi[Fiili Çalışma Süresi (saat)]=0,\"\",IF(ABS((Projeİzleyicisi[[#This Row],[Fiili Çalışma Süresi (saat)]]-Projeİzleyicisi[[#This Row],[Tahmini Çalışma Süresi (saat)]])/Projeİzleyicisi[[#This Row],[Tahmini Çalışma Süresi (saat)]])>BayrakYüzdesi,1,0)),\"\")","v":1},300,{"$f":"IFERROR(IF(Projeİzleyicisi[Fiili Çalışma Süresi (gün)]=0,\"\",IF(ABS((Projeİzleyicisi[[#This Row],[Fiili Çalışma Süresi (gün)]]-Projeİzleyicisi[[#This Row],[Tahmini Çalışma Süresi (gün)]])/Projeİzleyicisi[[#This Row],[Tahmini Çalışma Süresi (gün)]])>BayrakYüzdesi,1,0)),\"\")","v":0},{"$f":"IF(COUNTA('Proje İzleyicisi'!$I5,'Proje İzleyicisi'!$J5)<>2,\"\",DAYS360('Proje İzleyicisi'!$I5,'Proje İzleyicisi'!$J5,FALSE))","v":64}]
[null,"Proje 2","Kategori 2","Çalışan 4",{"$f":"TODAY()-41","v":"2016-09-10"},{"$f":"TODAY()-10","v":"2016-10-11"},400,{"$f":"IF(COUNTA('Proje İzleyicisi'!$E6,'Proje İzleyicisi'!$F6)<>2,\"\",DAYS360('Proje İzleyicisi'!$E6,'Proje İzleyicisi'!$F6,FALSE))","v":31},{"$f":"TODAY()-41","v":"2016-09-10"},{"$f":"TODAY()-7","v":"2016-10-14"},{"$f":"IFERROR(IF(Projeİzleyicisi[Fiili Çalışma Süresi (saat)]=0,\"\",IF(ABS((Projeİzleyicisi[[#This Row],[Fiili Çalışma Süresi (saat)]]-Projeİzleyicisi[[#This Row],[Tahmini Çalışma Süresi (saat)]])/Projeİzleyicisi[[#This Row],[Tahmini Çalışma Süresi (saat)]])>BayrakYüzdesi,1,0)),\"\")","v":0},390,{"$f":"IFERROR(IF(Projeİzleyicisi[Fiili Çalışma Süresi (gün)]=0,\"\",IF(ABS((Projeİzleyicisi[[#This Row],[Fiili Çalışma Süresi (gün)]]-Projeİzleyicisi[[#This Row],[Tahmini Çalışma Süresi (gün)]])/Projeİzleyicisi[[#This Row],[Tahmini Çalışma Süresi (gün)]])>BayrakYüzdesi,1,0)),\"\")","v":0},{"$f":"IF(COUNTA('Proje İzleyicisi'!$I6,'Proje İzleyicisi'!$J6)<>2,\"\",DAYS360('Proje İzleyicisi'!$I6,'Proje İzleyicisi'!$J6,FALSE))","v":34}]
[null,"Proje 3","Kategori 1","Çalışan 2",{"$f":"TODAY()-100","v":"2016-07-13"},{"$f":"TODAY()-40","v":"2016-09-11"},500,{"$f":"IF(COUNTA('Proje İzleyicisi'!$E7,'Proje İzleyicisi'!$F7)<>2,\"\",DAYS360('Proje İzleyicisi'!$E7,'Proje İzleyicisi'!$F7,FALSE))","v":58},{"$f":"TODAY()-100","v":"2016-07-13"},{"$f":"TODAY()-27","v":"2016-09-24"},{"$f":"IFERROR(IF(Projeİzleyicisi[Fiili Çalışma Süresi (saat)]=0,\"\",IF(ABS((Projeİzleyicisi[[#This Row],[Fiili Çalışma Süresi (saat)]]-Projeİzleyicisi[[#This Row],[Tahmini Çalışma Süresi (saat)]])/Projeİzleyicisi[[#This Row],[Tahmini Çalışma Süresi (saat)]])>BayrakYüzdesi,1,0)),\"\")","v":0},500,{"$f":"IFERROR(IF(Projeİzleyicisi[Fiili Çalışma Süresi (gün)]=0,\"\",IF(ABS((Projeİzleyicisi[[#This Row],[Fiili Çalışma Süresi (gün)]]-Projeİzleyicisi[[#This Row],[Tahmini Çalışma Süresi (gün)]])/Projeİzleyicisi[[#This Row],[Tahmini Çalışma Süresi (gün)]])>BayrakYüzdesi,1,0)),\"\")","v":0},{"$f":"IF(COUNTA('Proje İzleyicisi'!$I7,'Proje İzleyicisi'!$J7)<>2,\"\",DAYS360('Proje İzleyicisi'!$I7,'Proje İzleyicisi'!$J7,FALSE))","v":71}]
[null,"Proje 4","Kategori 2","Çalışan 3",{"$f":"TODAY()-90","v":"2016-07-23"},{"$f":"TODAY()-80","v":"2016-08-02"},250,{"$f":"IF(COUNTA('Proje İzleyicisi'!$E8,'Proje İzleyicisi'!$F8)<>2,\"\",DAYS360('Proje İzleyicisi'!$E8,'Proje İzleyicisi'!$F8,FALSE))","v":9},{"$f":"TODAY()-90","v":"2016-07-23"},{"$f":"TODAY()-71","v":"2016-08-11"},{"$f":"IFERROR(IF(Projeİzleyicisi[Fiili Çalışma Süresi (saat)]=0,\"\",IF(ABS((Projeİzleyicisi[[#This Row],[Fiili Çalışma Süresi (saat)]]-Projeİzleyicisi[[#This Row],[Tahmini Çalışma Süresi (saat)]])/Projeİzleyicisi[[#This Row],[Tahmini Çalışma Süresi (saat)]])>BayrakYüzdesi,1,0)),\"\")","v":0},276,{"$f":"IFERROR(IF(Projeİzleyicisi[Fiili Çalışma Süresi (gün)]=0,\"\",IF(ABS((Projeİzleyicisi[[#This Row],[Fiili Çalışma Süresi (gün)]]-Projeİzleyicisi[[#This Row],[Tahmini Çalışma Süresi (gün)]])/Projeİzleyicisi[[#This Row],[Tahmini Çalışma Süresi (gün)]])>BayrakYüzdesi,1,0)),\"\")","v":1},{"$f":"IF(COUNTA('Proje İzleyicisi'!$I8,'Proje İzleyicisi'!$J8)<>2,\"\",DAYS360('Proje İzleyicisi'!$I8,'Proje İzleyicisi'!$J8,FALSE))","v":18}]
[null,"Proje 5","Kategori 3","Çalışan 2",{"$f":"TODAY()-90","v":"2016-07-23"},{"$f":"TODAY()-50","v":"2016-09-01"},300,{"$f":"IF(COUNTA('Proje İzleyicisi'!$E9,'Proje İzleyicisi'!$F9)<>2,\"\",DAYS360('Proje İzleyicisi'!$E9,'Proje İzleyicisi'!$F9,FALSE))","v":38},{"$f":"TODAY()-90","v":"2016-07-23"},{"$f":"TODAY()-44","v":"2016-09-07"},{"$f":"IFERROR(IF(Projeİzleyicisi[Fiili Çalışma Süresi (saat)]=0,\"\",IF(ABS((Projeİzleyicisi[[#This Row],[Fiili Çalışma Süresi (saat)]]-Projeİzleyicisi[[#This Row],[Tahmini Çalışma Süresi (saat)]])/Projeİzleyicisi[[#This Row],[Tahmini Çalışma Süresi (saat)]])>BayrakYüzdesi,1,0)),\"\")","v":0},310,{"$f":"IFERROR(IF(Projeİzleyicisi[Fiili Çalışma Süresi (gün)]=0,\"\",IF(ABS((Projeİzleyicisi[[#This Row],[Fiili Çalışma Süresi (gün)]]-Projeİzleyicisi[[#This Row],[Tahmini Çalışma Süresi (gün)]])/Projeİzleyicisi[[#This Row],[Tahmini Çalışma Süresi (gün)]])>BayrakYüzdesi,1,0)),\"\")","v":0},{"$f":"IF(COUNTA('Proje İzleyicisi'!$I9,'Proje İzleyicisi'!$J9)<>2,\"\",DAYS360('Proje İzleyicisi'!$I9,'Proje İzleyicisi'!$J9,FALSE))","v":44}]
[null,"Proje 6","Kategori 4","Çalışan 4",{"$f":"TODAY()-60","v":"2016-08-22"},{"$f":"TODAY()-50","v":"2016-09-01"},500,{"$f":"IF(COUNTA('Proje İzleyicisi'!$E10,'Proje İzleyicisi'!$F10)<>2,\"\",DAYS360('Proje İzleyicisi'!$E10,'Proje İzleyicisi'!$F10,FALSE))","v":9},{"$f":"TODAY()-60","v":"2016-08-22"},{"$f":"TODAY()-45","v":"2016-09-06"},{"$f":"IFERROR(IF(Projeİzleyicisi[Fiili Çalışma Süresi (saat)]=0,\"\",IF(ABS((Projeİzleyicisi[[#This Row],[Fiili Çalışma Süresi (saat)]]-Projeİzleyicisi[[#This Row],[Tahmini Çalışma Süresi (saat)]])/Projeİzleyicisi[[#This Row],[Tahmini Çalışma Süresi (saat)]])>BayrakYüzdesi,1,0)),\"\")","v":0},510,{"$f":"IFERROR(IF(Projeİzleyicisi[Fiili Çalışma Süresi (gün)]=0,\"\",IF(ABS((Projeİzleyicisi[[#This Row],[Fiili Çalışma Süresi (gün)]]-Projeİzleyicisi[[#This Row],[Tahmini Çalışma Süresi (gün)]])/Projeİzleyicisi[[#This Row],[Tahmini Çalışma Süresi (gün)]])>BayrakYüzdesi,1,0)),\"\")","v":1},{"$f":"IF(COUNTA('Proje İzleyicisi'!$I10,'Proje İzleyicisi'!$J10)<>2,\"\",DAYS360('Proje İzleyicisi'!$I10,'Proje İzleyicisi'!$J10,FALSE))","v":14}]
[null,"Proje 7","Kategori 5","Çalışan 1",{"$f":"TODAY()-44","v":"2016-09-07"},{"$f":"TODAY()-20","v":"2016-10-01"},750,{"$f":"IF(COUNTA('Proje İzleyicisi'!$E11,'Proje İzleyicisi'!$F11)<>2,\"\",DAYS360('Proje İzleyicisi'!$E11,'Proje İzleyicisi'!$F11,FALSE))","v":24},{"$f":"TODAY()-44","v":"2016-09-07"},{"$f":"TODAY()-15","v":"2016-10-06"},{"$f":"IFERROR(IF(Projeİzleyicisi[Fiili Çalışma Süresi (saat)]=0,\"\",IF(ABS((Projeİzleyicisi[[#This Row],[Fiili Çalışma Süresi (saat)]]-Projeİzleyicisi[[#This Row],[Tahmini Çalışma Süresi (saat)]])/Projeİzleyicisi[[#This Row],[Tahmini Çalışma Süresi (saat)]])>BayrakYüzdesi,1,0)),\"\")","v":0},790,{"$f":"IFERROR(IF(Projeİzleyicisi[Fiili Çalışma Süresi (gün)]=0,\"\",IF(ABS((Projeİzleyicisi[[#This Row],[Fiili Çalışma Süresi (gün)]]-Projeİzleyicisi[[#This Row],[Tahmini Çalışma Süresi (gün)]])/Projeİzleyicisi[[#This Row],[Tahmini Çalışma Süresi (gün)]])>BayrakYüzdesi,1,0)),\"\")","v":0},{"$f":"IF(COUNTA('Proje İzleyicisi'!$I11,'Proje İzleyicisi'!$J11)<>2,\"\",DAYS360('Proje İzleyicisi'!$I11,'Proje İzleyicisi'!$J11,FALSE))","v":29}]
[null,"Proje 8","Kategori 2","Çalışan 1",{"$f":"TODAY()-39","v":"2016-09-12"},{"$f":"TODAY()","v":"2016-10-21"},450,{"$f":"IF(COUNTA('Proje İzleyicisi'!$E12,'Proje İzleyicisi'!$F12)<>2,\"\",DAYS360('Proje İzleyicisi'!$E12,'Proje İzleyicisi'!$F12,FALSE))","v":39},{"$f":"TODAY()-45","v":"2016-09-06"},{"$f":"TODAY()-5","v":"2016-10-16"},{"$f":"IFERROR(IF(Projeİzleyicisi[Fiili Çalışma Süresi (saat)]=0,\"\",IF(ABS((Projeİzleyicisi[[#This Row],[Fiili Çalışma Süresi (saat)]]-Projeİzleyicisi[[#This Row],[Tahmini Çalışma Süresi (saat)]])/Projeİzleyicisi[[#This Row],[Tahmini Çalışma Süresi (saat)]])>BayrakYüzdesi,1,0)),\"\")","v":0},430,{"$f":"IFERROR(IF(Projeİzleyicisi[Fiili Çalışma Süresi (gün)]=0,\"\",IF(ABS((Projeİzleyicisi[[#This Row],[Fiili Çalışma Süresi (gün)]]-Projeİzleyicisi[[#This Row],[Tahmini Çalışma Süresi (gün)]])/Projeİzleyicisi[[#This Row],[Tahmini Çalışma Süresi (gün)]])>BayrakYüzdesi,1,0)),\"\")","v":0},{"$f":"IF(COUNTA('Proje İzleyicisi'!$I12,'Proje İzleyicisi'!$J12)<>2,\"\",DAYS360('Proje İzleyicisi'!$I12,'Proje İzleyicisi'!$J12,FALSE))","v":40}]
[null,"Proje 9","Kategori 4","Çalışan 1","2016-02-05","2016-06-09",250,{"$f":"IF(COUNTA('Proje İzleyicisi'!$E13,'Proje İzleyicisi'!$F13)<>2,\"\",DAYS360('Proje İzleyicisi'!$E13,'Proje İzleyicisi'!$F13,FALSE))","v":124},"2016-03-05","2016-05-05",{"$f":"IFERROR(IF(Projeİzleyicisi[Fiili Çalışma Süresi (saat)]=0,\"\",IF(ABS((Projeİzleyicisi[[#This Row],[Fiili Çalışma Süresi (saat)]]-Projeİzleyicisi[[#This Row],[Tahmini Çalışma Süresi (saat)]])/Projeİzleyicisi[[#This Row],[Tahmini Çalışma Süresi (saat)]])>BayrakYüzdesi,1,0)),\"\")","v":0},200,{"$f":"IFERROR(IF(Projeİzleyicisi[Fiili Çalışma Süresi (gün)]=0,\"\",IF(ABS((Projeİzleyicisi[[#This Row],[Fiili Çalışma Süresi (gün)]]-Projeİzleyicisi[[#This Row],[Tahmini Çalışma Süresi (gün)]])/Projeİzleyicisi[[#This Row],[Tahmini Çalışma Süresi (gün)]])>BayrakYüzdesi,1,0)),\"\")","v":1},{"$f":"IF(COUNTA('Proje İzleyicisi'!$I13,'Proje İzleyicisi'!$J13)<>2,\"\",DAYS360('Proje İzleyicisi'!$I13,'Proje İzleyicisi'!$J13,FALSE))","v":60}]

{"sheet":"Kurulum","index":1,"n_rows":10,"n_cols":3,"rows_kept":10}
[null,"Kurulum"]
[]
[]
[null,"Kategori Adı","Çalışan Adı"]
[null,"Kategori 1","Çalışan 1"]
[null,"Kategori 2","Çalışan 2"]
[null,"Kategori 3","Çalışan 3"]
[null,"Kategori 4","Çalışan 4"]
[null,"Kategori 5","Çalışan 5"]
[null,"Kategori 6","Çalışan 6"]